bitfinex/quotes_BTCUSD_20250826
["timestamp","ask_amount","ask_price","bid_price","bid_amount"]
[1756211900302,0.18592547,110610.0,110600.0,0.00014289]
[1756211900554,0.99888711,110610.0,110600.0,0.00014289]
[1756211900754,6.52814149,110610.0,110600.0,0.00014289]
[1756211900970,6.67194956,110610.0,110600.0,0.00014289]
[1756211901226,0.18088088,110570.0,110550.0,0.07329699]
[1756211901440,0.18091361,110550.0,110540.0,0.39824998]
[1756211901645,0.18089725,110560.0,110540.0,0.62424822]
[1756211901864,0.18089725,110560.0,110540.0,0.62762124]
[1756211901865,0.00282677,110550.0,110540.0,0.62762124]
[1756211902521,0.18992492,110570.0,110550.0,0.18090437]
[1756211902736,0.18089725,110560.0,110550.0,0.18526478]
[1756211902954,0.18582376,110560.0,110550.0,0.09146202]
[1756211903166,0.18299725,110560.0,110550.0,0.09146202]
[1756211903379,0.18091361,110550.0,110540.0,0.00614302]
[1756211903593,5.99688525,110550.0,110540.0,0.00614302]
[1756211903833,0.99898525,110550.0,110540.0,0.01014302]
[1756211904043,0.18602361,110550.0,110540.0,0.01014302]
[1756211904254,0.0021,110550.0,110540.0,0.01014302]
[1756211904464,0.18584038,110550.0,110540.0,0.00614302]
[1756211904669,0.18301361,110550.0,110540.0,0.00614302]
[1756211904898,0.18089725,110560.0,110540.0,0.416023]
[1756211905126,0.00282651,110560.0,110550.0,0.18414361]
[1756211905349,0.18992172,110580.0,110560.0,0.18089725]
[1756211905582,0.18992172,110580.0,110560.0,0.49926927]
[1756211905814,0.19292752,110590.0,110570.0,0.180874]
[1756211905995,0.18088088,110570.0,110560.0,0.31514202]
[1756211906239,0.18991752,110590.0,110560.0,1.31423091]
[1756211906452,0.18088088,110570.0,110560.0,0.31714202]
[1756211906675,0.00282626,110570.0,110560.0,0.49803927]
[1756211906912,0.18088088,110570.0,110560.0,0.32037202]
[1756211907131,0.00282626,110570.0,110560.0,0.49803927]
[1756211907335,0.18369053,110580.0,110560.0,0.50126927]
[1756211907489,0.18086453,110580.0,110570.0,0.18088088]
[1756211907694,0.19292752,110590.0,110570.0,0.18088088]
[1756211907912,0.18083186,110600.0,110590.0,0.18084817]
[1756211908118,0.1997674,110610.0,110590.0,0.18084817]
[1756211908348,0.0300372,110610.0,110600.0,0.18083182]
[1756211908495,0.21085267,110610.0,110600.0,0.40523182]
[1756211908924,0.18083182,110600.0,110590.0,0.22432]
[1756211909114,0.18594182,110600.0,110580.0,0.40518385]
[1756211909331,0.18594182,110600.0,110580.0,0.09146202]
[1756211909332,0.18084817,110590.0,110580.0,0.09146202]
[1756211909541,0.18878392,110590.0,110570.0,0.40425694]
[1756211909745,0.2057422,110610.0,110590.0,0.18084817]
[1756211910156,0.00282549,110600.0,110590.0,0.18084817]
[1756211910569,0.18084817,110590.0,110580.0,0.09146202]
[1756211910775,0.18294817,110590.0,110570.0,0.18918098]
[1756211910952,0.18595817,110590.0,110580.0,0.224]
[1756211911158,0.18084817,110590.0,110580.0,0.40486453]
[1756211911362,0.18083182,110600.0,110590.0,0.18084817]
[1756211911566,0.18084817,110590.0,110580.0,0.224]
[1756211911774,0.18084817,110590.0,110580.0,0.18086453]
[1756211911973,0.18384182,110600.0,110580.0,0.18086453]
[1756211912138,0.18367392,110590.0,110580.0,0.18086453]
[1756211912342,0.18084817,110590.0,110580.0,0.18086453]
[1756211912544,0.18088088,110570.0,110560.0,0.18089725]
[1756211912746,0.18088088,110570.0,110560.0,0.31592504]
[1756211912747,0.18298088,110570.0,110560.0,0.31592504]
[1756211912951,0.18088088,110570.0,110560.0,0.49682229]
[1756211913155,0.18580714,110570.0,110560.0,0.22446302]
[1756211913358,0.18298088,110570.0,110560.0,0.22446302]
[1756211913565,0.0021,110570.0,110560.0,0.40536027]
[1756211913780,0.00282626,110570.0,110560.0,0.40536027]
[1756211913995,0.00282626,110570.0,110560.0,0.40736027]
[1756211914195,0.00169646,110570.0,110560.0,0.40736027]
[1756211914429,0.18257734,110570.0,110560.0,0.22446302]
[1756211914661,0.18088088,110570.0,110560.0,0.22446302]
[1756211914886,0.18768734,110570.0,110560.0,0.22446302]
[1756211915102,0.18599088,110570.0,110560.0,0.22450302]
[1756211915359,0.18599088,110570.0,110560.0,0.00414302]
[1756211915597,0.18989057,110590.0,110570.0,0.18088088]
[1756211915822,0.18987341,110600.0,110580.0,0.40866453]
[1756211916036,0.18595817,110590.0,110580.0,0.2258]
[1756211916259,0.18574121,110590.0,110570.0,0.49950155]
[1756211916535,0.00169646,110580.0,110570.0,0.50273155]
[1756211916743,0.18084817,110590.0,110580.0,0.18084889]
[1756211916958,0.00169646,110590.0,110580.0,0.18084889]
[1756211917164,0.18987341,110600.0,110580.0,0.27754091]
[1756211917584,0.18987341,110600.0,110580.0,0.27431091]
[1756211917792,0.18254463,110590.0,110580.0,0.09346202]
[1756211918531,0.18464463,110590.0,110580.0,0.001]
[1756211918729,0.18294817,110590.0,110580.0,0.001]
[1756211918951,0.18084817,110590.0,110580.0,0.003]
[1756211919173,0.18464463,110590.0,110580.0,0.001]
[1756211919382,0.18294817,110590.0,110580.0,0.18186453]
[1756211919614,0.18294817,110590.0,110580.0,0.003]
[1756211919829,0.19288341,110600.0,110580.0,0.18386453]
[1756211919830,0.18987341,110600.0,110580.0,0.18386453]
[1756211920058,0.00169646,110590.0,110580.0,0.18386453]
[1756211920274,0.00169646,110590.0,110580.0,0.18286453]
[1756211920497,0.00169646,110590.0,110580.0,0.18486453]
[1756211920928,0.00169646,110590.0,110580.0,0.002]
[1756211920929,0.18464463,110590.0,110580.0,0.002]
[1756211921137,0.18084817,110590.0,110580.0,0.18086453]
[1756211921352,0.18464463,110590.0,110570.0,0.1899231]
[1756211921583,0.18464463,110590.0,110580.0,0.2302]
[1756211921584,0.18294817,110590.0,110580.0,0.2302]
[1756211921764,0.18294817,110590.0,110580.0,0.2312]
[1756211921990,0.18616817,110590.0,110580.0,0.2302]
[1756211922398,0.18616817,110590.0,110580.0,0.22767328]
[1756211922603,1.04999722,110590.0,110580.0,0.003]
[1756211922830,0.99912981,110590.0,110580.0,0.003]
[1756211923035,0.99912981,110590.0,110580.0,0.18386453]
[1756211923036,0.0021,110590.0,110580.0,0.18386453]
[1756211923244,0.18464463,110590.0,110580.0,0.003]
[1756211923463,0.18294817,110590.0,110580.0,0.003]
[1756211923678,0.18294817,110590.0,110580.0,0.18386453]
[1756211924172,0.18294817,110590.0,110580.0,0.003]
[1756211924592,0.27761346,110590.0,110580.0,0.003]
[1756211925018,0.18294817,110590.0,110580.0,0.00284868]
[1756211925459,0.18084817,110590.0,110580.0,0.18584321]
[1756211925674,0.18254463,110590.0,110580.0,0.18584321]
[1756211925921,0.18464463,110590.0,110580.0,0.00284868]
[1756211926141,0.18616817,110590.0,110580.0,0.00284868]
[1756211926560,0.99912981,110590.0,110580.0,0.00284868]
[1756211926798,0.18616817,110590.0,110580.0,0.00284868]
[1756211927233,0.202409,110590.0,110580.0,0.00284868]
[1756211927443,0.18294817,110590.0,110580.0,0.00284868]
[1756211928319,0.20242482,110590.0,110580.0,0.00284868]
[1756211928530,0.18084817,110590.0,110580.0,0.00284868]
[1756211928742,0.18254463,110590.0,110580.0,0.0024615]
[1756211929309,0.18254463,110590.0,110580.0,0.27999805]
[1756211929510,0.00169646,110590.0,110580.0,0.27999805]
[1756211929706,0.18987341,110600.0,110580.0,0.27999805]
[1756211929918,0.18254463,110590.0,110580.0,0.27999805]
[1756211930457,0.00169646,110590.0,110580.0,0.27999805]
[1756211930659,1.7345481,110610.0,110590.0,0.18083389]
[1756211930660,0.00169646,110600.0,110590.0,0.18083389]
[1756211930833,0.18252828,110600.0,110590.0,0.41548389]
[1756211931439,0.00169646,110600.0,110590.0,0.41548389]
[1756211931627,0.18252828,110600.0,110590.0,0.41548389]
[1756211932468,0.18252828,110600.0,110590.0,0.41648389]
[1756211933229,0.00169646,110600.0,110590.0,0.41648389]
[1756211933456,0.18252828,110600.0,110590.0,0.41648389]
[1756211934722,0.00169646,110600.0,110590.0,0.41600167]
[1756211935326,0.00169646,110600.0,110590.0,0.50746369]
[1756211935517,1.54469186,110610.0,110600.0,0.18083182]
[1756211935743,1.54469186,110610.0,110600.0,1.09046548]
[1756211936803,1.54483467,110610.0,110600.0,1.09046548]
[1756211937233,1.54483467,110610.0,110600.0,0.27750384]
[1756211937437,1.54483467,110610.0,110600.0,1.09046548]
[1756211937852,1.54483467,110610.0,110600.0,1.09446548]
[1756211938061,1.54483467,110610.0,110600.0,0.28150384]
[1756211938878,1.53623852,110610.0,110600.0,1.09746548]
[1756211939092,1.53623852,110610.0,110600.0,0.28450384]
[1756211939266,1.53623852,110610.0,110600.0,0.51246384]
[1756211939695,1.53623852,110610.0,110600.0,1.32542548]
[1756211940098,1.53623852,110610.0,110600.0,0.51246384]
[1756211940339,1.53623852,110610.0,110600.0,0.51214384]
[1756211940507,1.53623852,110610.0,110600.0,1.32411011]
[1756211940707,1.53623852,110610.0,110600.0,0.51013747]
[1756211941496,1.53623852,110610.0,110600.0,1.32309911]
[1756211941952,1.53623852,110610.0,110600.0,1.34054813]
[1756211942150,1.53623852,110610.0,110600.0,1.68054813]
[1756211942361,1.53623852,110610.0,110600.0,0.86758649]
[1756211942508,1.53623852,110610.0,110600.0,1.70772513]
[1756211943001,1.53623852,110610.0,110600.0,0.89476349]
[1756211943418,1.53623852,110610.0,110600.0,1.48008513]
[1756211943545,1.53623852,110610.0,110600.0,0.89460349]
[1756211943741,1.53623852,110610.0,110600.0,1.70756513]
[1756211943973,1.53623852,110610.0,110600.0,0.66712349]
[1756211944147,1.53623852,110610.0,110600.0,0.89432349]
[1756211944353,1.53623852,110610.0,110600.0,1.70728513]
[1756211945373,1.53623852,110610.0,110600.0,1.70714087]
[1756211945586,1.53623852,110610.0,110600.0,1.70927087]
[1756211946444,1.53623852,110610.0,110600.0,0.89630923]
[1756211946653,1.53623852,110610.0,110600.0,1.70757749]
[1756211948686,1.53623852,110610.0,110600.0,1.71657749]
[1756211949328,1.53623852,110610.0,110600.0,2.47550271]
[1756211949523,1.53623852,110610.0,110600.0,1.30245585]
[1756211949757,1.53623852,110610.0,110600.0,1.88603928]
[1756211950115,1.53623852,110610.0,110600.0,1.48203928]
[1756211950345,1.53623852,110610.0,110600.0,0.88709585]
[1756211950569,1.53623852,110610.0,110600.0,2.06198271]
[1756211950806,1.53623852,110610.0,110600.0,0.89909585]
[1756211951029,1.53623852,110610.0,110600.0,2.07098271]
[1756211951667,1.53623852,110610.0,110600.0,1.46759026]
[1756211951887,1.53623852,110610.0,110600.0,2.06998271]
[1756211952099,1.53623852,110610.0,110600.0,2.06098271]
[1756211952329,1.53623852,110610.0,110600.0,2.06398271]
[1756211952540,1.53623852,110610.0,110600.0,0.89209585]
[1756211952756,1.53623852,110610.0,110600.0,0.88709585]
[1756211952983,1.53623852,110610.0,110600.0,0.67541585]
[1756211953186,1.53623852,110610.0,110600.0,1.48743928]
[1756211953469,1.53623852,110610.0,110600.0,1.49343928]
[1756211953897,1.53623852,110610.0,110600.0,0.90749585]
[1756211954127,1.53623852,110610.0,110600.0,1.08141585]
[1756211954355,1.53623852,110610.0,110600.0,1.89319928]
[1756211955009,1.53623852,110610.0,110600.0,2.47914271]
[1756211955215,1.53623852,110610.0,110600.0,1.89319928]
[1756211955419,1.53623852,110610.0,110600.0,1.30725585]
[1756211955630,1.53623852,110610.0,110600.0,1.66735928]
[1756211955846,1.53826852,110610.0,110600.0,1.88967928]
[1756211956050,1.53623852,110610.0,110600.0,1.49260928]
[1756211956495,1.53826852,110610.0,110600.0,1.48754928]
[1756211956706,1.54132852,110610.0,110600.0,0.67620585]
[1756211956915,1.53826852,110610.0,110600.0,1.48963928]
[1756211957124,1.53826852,110610.0,110600.0,0.90369585]
[1756211957358,1.54132852,110610.0,110600.0,0.31875683]
[1756211957573,1.54132852,110610.0,110600.0,0.54395683]
[1756211957783,1.54132852,110610.0,110600.0,0.51677983]
[1756211958648,1.54132852,110610.0,110600.0,0.51077983]
[1756211958898,1.54132852,110610.0,110600.0,0.28557983]
[1756211959132,2.40485921,110610.0,110600.0,0.006]
[1756211959352,1.81891578,110610.0,110600.0,0.22824]
[1756211959592,2.40485921,110610.0,110600.0,0.22824]
[1756211960093,2.40485921,110610.0,110600.0,0.003]
[1756211960339,7.72172123,110610.0,110600.0,0.003]
[1756211960574,8.70568063,110610.0,110600.0,0.005]
[1756211960807,8.18350064,110610.0,110600.0,0.005]
[1756211961045,8.1230761,110610.0,110600.0,0.0045523]
[1756211961266,8.1230761,110610.0,110600.0,0.0042129]
[1756211961516,8.13893968,110610.0,110600.0,0.0022129]
[1756211961749,8.02302768,110610.0,110600.0,0.0022129]
[1756211961982,7.21160425,110610.0,110600.0,0.0022129]
[1756211962210,0.18084817,110590.0,110580.0,0.22548]
[1756211962435,0.18763463,110590.0,110580.0,0.22548]
[1756211962656,0.18593817,110590.0,110580.0,0.22548]
[1756211962883,0.00509,110590.0,110580.0,0.40634453]
[1756211963120,0.00306,110600.0,110590.0,0.18084817]
[1756211963344,0.18761828,110600.0,110590.0,0.18084817]
[1756211963576,0.18592182,110600.0,110580.0,0.49780655]
[1756211963813,0.00203,110600.0,110590.0,0.18084817]
[1756211964067,0.00103,110600.0,110590.0,0.85825362]
[1756211964289,0.00203,110600.0,110590.0,0.27231019]
[1756211964513,0.18084817,110590.0,110580.0,0.002]
[1756211964736,0.00203,110590.0,110580.0,0.49948655]
[1756211964922,0.00306,110600.0,110590.0,0.18084817]
[1756211965168,1.72609757,110610.0,110600.0,0.18083182]
[1756211965169,1.53623852,110610.0,110600.0,0.18083182]
[1756211965399,1.53826852,110610.0,110600.0,0.18083182]
[1756211965628,1.53826852,110610.0,110600.0,0.40603182]
[1756211965856,1.53826852,110610.0,110600.0,1.08343727]
[1756211966065,1.53623852,110610.0,110600.0,0.49958384]
[1756211966323,1.53623852,110610.0,110600.0,0.50251384]
[1756211966555,1.53826852,110610.0,110600.0,0.49749384]
[1756211966813,1.33749713,110610.0,110600.0,0.49676955]
[1756211967024,1.5213726,110610.0,110600.0,0.49607876]
[1756211967512,1.5213726,110610.0,110600.0,0.001]
[1756211967730,1.5213726,110610.0,110600.0,0.22596513]
[1756211967731,2.12181825,110610.0,110600.0,0.22596513]
[1756211967956,1.33546713,110610.0,110600.0,0.50034897]
[1756211968177,1.33749713,110610.0,110600.0,0.49825897]
[1756211968836,1.33546713,110610.0,110600.0,0.50034897]
[1756211969048,1.33646713,110610.0,110600.0,1.0892224]
[1756211969231,1.33646713,110610.0,110600.0,0.50034897]
[1756211969674,1.33646713,110610.0,110600.0,0.50327897]
[1756211969998,1.33646713,110610.0,110600.0,1.0892224]
[1756211970216,1.33646713,110610.0,110600.0,1.08865727]
[1756211970629,1.33646713,110610.0,110600.0,0.50571384]
[1756211970841,1.33646713,110610.0,110600.0,1.09165727]
[1756211971252,1.33646713,110610.0,110600.0,1.08872727]
[1756211971462,1.33749713,110610.0,110600.0,1.08663727]
[1756211971702,1.33749713,110610.0,110600.0,0.50069384]
[1756211971905,1.5213726,110610.0,110600.0,0.27729384]
[1756211972119,1.5213726,110610.0,110600.0,0.005]
[1756211972340,1.5213726,110610.0,110600.0,0.23076]
[1756211972554,1.5213726,110610.0,110600.0,0.005]
[1756211972769,2.10731603,110610.0,110600.0,0.005]
[1756211973185,1.5213726,110610.0,110600.0,0.18583182]
[1756211973971,1.5213726,110610.0,110600.0,0.005]
[1756211974178,2.10731603,110610.0,110600.0,0.23068]
[1756211974395,2.42420132,110610.0,110600.0,0.005]
[1756211974621,1.83825789,110610.0,110600.0,0.005]
[1756211974836,1.5213726,110610.0,110600.0,0.005]
[1756211975053,2.10731603,110610.0,110600.0,0.005]
[1756211975467,1.5213726,110610.0,110600.0,0.005]
[1756211975679,2.10731603,110610.0,110600.0,0.005]
[1756211975890,2.19876132,110610.0,110600.0,0.003]
[1756211976329,2.19876132,110610.0,110590.0,0.22556]
[1756211976330,0.18083182,110600.0,110590.0,0.22556]
[1756211976551,0.18455828,110600.0,110590.0,0.09146202]
[1756211976767,0.18592182,110600.0,110590.0,0.09146202]
[1756211977005,0.18592182,110600.0,110590.0,0.22552]
[1756211977215,0.18592182,110600.0,110580.0,0.39822408]
[1756211977216,0.18084817,110590.0,110580.0,0.21736]
[1756211977426,0.18287817,110590.0,110580.0,0.71512655]
[1756211977689,0.18084817,110590.0,110580.0,0.71721655]
[1756211977899,0.18254463,110590.0,110580.0,0.72014655]
[1756211978115,0.18457463,110590.0,110580.0,0.30882202]
[1756211978331,0.18287817,110590.0,110580.0,0.71496655]
[1756211978762,0.00203,110590.0,110580.0,0.71496655]
[1756211979013,0.00169646,110590.0,110580.0,0.71705655]
[1756211979467,0.00203,110590.0,110580.0,0.71496655]
[1756211979889,0.00203,110590.0,110580.0,0.71796655]
[1756211980311,0.00475646,110600.0,110590.0,0.18084817]
[1756211980530,1.33546713,110610.0,110600.0,0.18083182]
[1756211980748,1.33546713,110610.0,110600.0,0.18292182]
[1756211980995,1.33546713,110610.0,110600.0,0.77179525]
[1756211981226,1.33546713,110610.0,110600.0,0.18585182]
[1756211981405,1.33546713,110610.0,110600.0,0.27731384]
[1756211981673,1.33546713,110610.0,110600.0,0.86325727]
[1756211982087,1.33546713,110610.0,110600.0,0.27438384]
[1756211982300,1.33742713,110610.0,110600.0,0.27229384]
[1756211982508,1.33546713,110610.0,110600.0,0.27436384]
[1756211982718,1.33646713,110610.0,110600.0,0.27749384]
[1756211982899,1.33842713,110610.0,110600.0,0.27229384]
[1756211983221,1.33742713,110610.0,110600.0,0.27229384]
[1756211983442,1.92659056,110610.0,110600.0,0.50205384]
[1756211983651,1.34064713,110610.0,110600.0,0.50205384]
[1756211984299,1.92659056,110610.0,110600.0,0.50165384]
[1756211984513,1.92659056,110610.0,110600.0,0.27629384]
[1756211984740,2.53885132,110610.0,110600.0,0.004]
[1756211984954,2.26659056,110610.0,110600.0,0.18483182]
[1756211985437,1.67742713,110610.0,110600.0,0.18783182]
[1756211985662,1.68064713,110610.0,110600.0,0.18783182]
[1756211986108,1.33546713,110610.0,110600.0,0.28136384]
[1756211986314,1.33546713,110610.0,110600.0,0.86643727]
[1756211986532,1.33546713,110610.0,110600.0,0.28049384]
[1756211986747,1.33646713,110610.0,110600.0,0.86643727]
[1756211986973,0.8940197,110610.0,110600.0,0.36750286]
[1756211987201,0.6837926,110610.0,110600.0,0.95344629]
[1756211987412,0.48240915,110610.0,110600.0,0.97762329]
[1756211987625,0.47058306,110610.0,110600.0,1.05092028]
[1756211987865,0.00613869,110650.0,110640.0,0.18076644]
[1756211988097,0.00613869,110650.0,110640.0,1.08659147]
[1756211988098,0.00618632,110650.0,110640.0,1.08659147]
[1756211988304,0.00618632,110650.0,110640.0,0.50045846]
[1756211988514,0.00814632,110650.0,110640.0,0.49838846]
[1756211988732,0.00618632,110650.0,110640.0,0.50045846]
[1756211989412,0.00618632,110650.0,110640.0,0.50358846]
[1756211989849,0.00814632,110650.0,110640.0,0.27222846]
[1756211990066,0.01136632,110650.0,110640.0,0.49870846]
[1756211990291,0.00814632,110650.0,110640.0,0.49870846]
[1756211990516,0.00618632,110650.0,110640.0,0.50077846]
[1756211990982,0.00618632,110650.0,110640.0,0.50377846]
[1756211991209,0.00618632,110650.0,110640.0,0.50170846]
[1756211991430,0.77975632,110650.0,110640.0,0.32318202]
[1756211991648,0.77805986,110650.0,110640.0,0.50394846]
[1756211991938,0.01136632,110650.0,110640.0,0.50394846]
[1756211992162,0.19381289,110650.0,110640.0,0.27822846]
[1756211992369,0.77805986,110650.0,110640.0,0.54541942]
[1756211992990,0.00618632,110650.0,110640.0,0.54541942]
[1756211993208,0.00618632,110650.0,110640.0,0.54748942]
[1756211993433,0.00618632,110650.0,110640.0,0.55061942]
[1756211993653,0.00618632,110650.0,110640.0,0.54748942]
[1756211993874,0.00618632,110650.0,110640.0,0.54761942]
[1756211994097,0.00618632,110650.0,110640.0,1.13056285]
[1756211994324,0.00618632,110650.0,110640.0,1.20008285]
[1756211994565,0.00618632,110650.0,110640.0,1.21953187]
[1756211994791,0.00618632,110650.0,110640.0,1.24669787]
[1756211995021,0.00618632,110650.0,110640.0,1.80201787]
[1756211995022,1e-08,110650.0,110640.0,1.80201787]
[1756211995245,0.58782351,110700.0,110690.0,0.18068479]
[1756211995464,0.00536362,110700.0,110690.0,0.27214681]
[1756211995728,0.02229945,110700.0,110690.0,0.49778681]
[1756211995934,0.00753663,110700.0,110690.0,0.49778681]
[1756211996137,0.00584017,110700.0,110690.0,0.49778681]
[1756211996351,0.00753663,110700.0,110690.0,0.49778681]
[1756211996569,0.00584017,110700.0,110690.0,0.49778681]
[1756211997228,0.00753663,110700.0,110690.0,0.49778681]
[1756211998167,0.00753663,110700.0,110690.0,0.49730681]
[1756211998410,0.81714985,110700.0,110690.0,0.49730681]
[1756211998629,0.00884017,110700.0,110690.0,0.49730681]
[1756211998852,0.01053663,110700.0,110690.0,0.49730681]
[1756211999074,0.01053663,110700.0,110690.0,0.49564864]
[1756211999296,0.82014985,110700.0,110690.0,0.49512576]
[1756211999556,0.81845339,110700.0,110690.0,0.49476006]
[1756211999781,0.00884017,110700.0,110690.0,0.49476006]
[1756212000233,0.00562017,110700.0,110690.0,0.26960006]
[1756212000464,0.00366017,110700.0,110690.0,0.49618419]
[1756212000733,0.81523339,110700.0,110690.0,0.09146202]
[1756212000966,0.27270171,110700.0,110690.0,0.18068479]
[1756212001194,0.81845339,110700.0,110690.0,0.18068479]
[1756212001424,0.00884017,110700.0,110690.0,0.18068479]
[1756212001655,0.00731663,110700.0,110690.0,0.27214681]
[1756212001865,0.01053663,110700.0,110690.0,0.27214681]
[1756212002084,0.82014985,110700.0,110690.0,0.27214681]
[1756212002343,0.00884017,110700.0,110690.0,0.27214681]
[1756212002550,0.82014985,110700.0,110690.0,0.27192932]
[1756212002763,0.00884017,110700.0,110690.0,0.27192932]
[1756212002964,0.82014985,110700.0,110690.0,0.49628932]
[1756212003171,0.99912186,110700.0,110690.0,0.49628932]
[1756212003386,0.99912186,110700.0,110690.0,0.22428]
[1756212003641,0.18950864,110700.0,110690.0,0.22428]
[1756212003884,0.81122598,110700.0,110690.0,0.40496479]
[1756212004150,0.18424123,110700.0,110690.0,0.22428]
[1756212004395,0.99224169,110700.0,110690.0,0.22428]
[1756212004637,0.18262847,110700.0,110690.0,0.22428]
[1756212004837,0.18068479,110690.0,110680.0,0.0398946]
[1756212005079,0.18071845,110670.0,110650.0,0.3443562]
[1756212005290,0.18241758,110670.0,110660.0,0.09353202]
[1756212005499,0.18241758,110670.0,110660.0,0.31514202]
[1756212005500,0.9920308,110670.0,110660.0,0.31514202]
[1756212005683,0.99229434,110670.0,110660.0,0.31514202]
[1756212005944,0.18072112,110670.0,110660.0,0.31514202]
[1756212006167,0.9934008,110670.0,110660.0,0.31514202]
[1756212006390,0.18073377,110660.0,110650.0,0.06737042]
[1756212006609,0.18978761,110650.0,110640.0,0.22348]
[1756212006826,0.18975699,110670.0,110640.0,0.32014202]
[1756212007076,0.18243023,110660.0,110650.0,0.09146202]
[1756212007286,0.18072112,110670.0,110650.0,0.2796715]
[1756212007517,0.18974427,110680.0,110660.0,0.18386377]
[1756212007733,0.18971902,110690.0,110670.0,0.27424946]
[1756212007941,0.18239758,110680.0,110670.0,0.09353202]
[1756212008153,0.18070112,110680.0,110670.0,0.09353202]
[1756212008378,0.18071744,110670.0,110660.0,0.22352]
[1756212008587,0.18073377,110660.0,110650.0,0.06995655]
[1756212008802,0.99344345,110660.0,110650.0,0.38593857]
[1756212008984,0.99174699,110660.0,110650.0,0.38593857]
[1756212009435,0.99491699,110660.0,110650.0,0.31645857]
[1756212009657,1.08636228,110660.0,110650.0,0.00047655]
[1756212009868,1.42636228,110660.0,110650.0,0.00047655]
[1756212010103,0.61674906,110660.0,110650.0,0.00047655]
[1756212010321,1.44575087,110660.0,110650.0,0.00047655]
[1756212010531,1.42636228,110660.0,110650.0,4.745e-05]
[1756212010743,0.63613898,110660.0,110650.0,0.00604745]
[1756212011047,0.54469369,110660.0,110650.0,0.00604745]
[1756212011151,1.35430691,110660.0,110650.0,4.745e-05]
[1756212011361,0.52530377,110660.0,110650.0,4.745e-05]
[1756212011566,1.33220599,110660.0,110650.0,4.745e-05]
[1756212012852,0.99204345,110660.0,110650.0,4.745e-05]
[1756212013059,0.27217906,110660.0,110650.0,4.745e-05]
[1756212013259,0.99034699,110660.0,110650.0,4.745e-05]
[1756212013466,0.18073377,110660.0,110650.0,0.00304745]
[1756212013671,0.99204345,110660.0,110650.0,0.00504745]
[1756212013877,0.18073377,110660.0,110650.0,0.00204745]
[1756212014081,0.99204345,110660.0,110650.0,0.00204745]
[1756212014292,1.08179228,110660.0,110650.0,0.00204745]
[1756212014702,0.18073377,110660.0,110650.0,0.23160745]
[1756212014936,0.18243023,110660.0,110650.0,0.23260745]
[1756212015757,0.18243023,110660.0,110650.0,0.22962745]
[1756212015957,0.99204345,110660.0,110650.0,0.22764745]
[1756212016176,1.08179228,110660.0,110650.0,0.22764745]
[1756212016387,1.1012297,110660.0,110650.0,0.00304745]
[1756212016602,0.18076644,110640.0,110630.0,0.22436]
[1756212016819,0.1824629,110640.0,110630.0,0.31586965]
[1756212017028,0.1824629,110640.0,110630.0,0.32082965]
[1756212017466,0.76858027,110640.0,110630.0,0.32082965]
[1756212017715,0.18076644,110640.0,110630.0,0.32082965]
[1756212017919,0.1824629,110640.0,110630.0,0.32082965]
[1756212018142,0.76858027,110640.0,110630.0,0.31586965]
[1756212018349,0.76688381,110640.0,110630.0,0.09150965]
[1756212018577,0.83436173,110640.0,110630.0,0.00404763]
[1756212018795,0.83436173,110640.0,110630.0,0.00104764]
[1756212019015,0.78632027,110640.0,110630.0,0.00104764]
[1756212019219,0.18076644,110640.0,110630.0,0.00600764]
[1756212019436,0.76858027,110640.0,110630.0,0.00600764]
[1756212019636,0.76688381,110640.0,110630.0,0.00800764]
[1756212020058,0.76688381,110640.0,110630.0,0.00600764]
[1756212020268,0.18076644,110640.0,110630.0,0.00600764]
[1756212020472,0.18176644,110640.0,110630.0,0.32082202]
[1756212020841,0.18076644,110640.0,110630.0,0.32082202]
[1756212021041,0.18076644,110640.0,110630.0,0.32182202]
[1756212021458,0.76858027,110640.0,110630.0,0.32082202]
[1756212021663,0.18076644,110640.0,110630.0,0.32082202]
[1756212021921,0.1824629,110640.0,110630.0,0.32082202]
[1756212022548,0.76858027,110640.0,110630.0,0.09642202]
[1756212022745,0.24354347,110640.0,110630.0,0.09146202]
[1756212022947,0.76688381,110640.0,110630.0,0.09642202]
[1756212023150,0.18076644,110640.0,110630.0,0.09642202]
[1756212023456,0.1824629,110640.0,110630.0,0.09642202]
[1756212023912,0.76858027,110640.0,110630.0,0.09444202]
[1756212024118,0.76688381,110640.0,110630.0,0.09146202]
[1756212024330,0.78033114,110640.0,110630.0,0.09146202]
[1756212024528,0.87177643,110640.0,110630.0,0.09146202]
[1756212024738,0.18076644,110640.0,110630.0,0.09642202]
[1756212024947,0.1824629,110640.0,110630.0,0.09642202]
[1756212025129,0.76858027,110640.0,110630.0,0.09642202]
[1756212025366,0.18076644,110640.0,110630.0,0.09642202]
[1756212025572,0.76858027,110640.0,110630.0,0.09146202]
[1756212025789,0.18078278,110630.0,110620.0,0.22638]
[1756212025998,0.18079913,110620.0,110610.0,0.22646]
[1756212026242,0.76861296,110620.0,110610.0,0.31990202]
[1756212026468,0.7669165,110620.0,110610.0,0.31482202]
[1756212026674,0.7669165,110620.0,110610.0,0.09146202]
[1756212026876,0.18079913,110620.0,110610.0,0.09642202]
[1756212027003,0.18249559,110620.0,110610.0,0.09642202]
[1756212027618,0.18079913,110620.0,110610.0,0.09642202]
[1756212027842,0.18079913,110620.0,110610.0,0.09592942]
[1756212028393,0.18079913,110620.0,110610.0,0.27674489]
[1756212028639,0.18079913,110620.0,110610.0,0.09592942]
[1756212029338,0.18078278,110630.0,110610.0,0.27900508]
[1756212029568,0.18980476,110640.0,110620.0,0.40629913]
[1756212029569,0.18076915,110640.0,110620.0,0.40629913]
[1756212029794,0.18076915,110640.0,110630.0,0.09642202]
[1756212030081,0.18076915,110640.0,110630.0,0.2772048]
[1756212030301,0.18076915,110640.0,110630.0,0.31250202]
[1756212030762,0.18980191,110650.0,110630.0,0.31250202]
[1756212030992,0.18994472,110650.0,110640.0,0.22498]
[1756212031218,0.18994472,110650.0,110640.0,0.22696]
[1756212031458,0.00014281,110650.0,110640.0,0.49918846]
[1756212031692,0.00014281,110650.0,110640.0,1.08530583]
[1756212031922,0.00014281,110650.0,110640.0,0.49918846]
[1756212032149,0.00014281,110650.0,110640.0,1.08530583]
[1756212032367,0.00014281,110650.0,110640.0,0.49918846]
[1756212033477,0.00014281,110650.0,110640.0,0.49818846]
[1756212034389,0.00014281,110650.0,110640.0,0.50118846]
[1756212034818,0.00014281,110650.0,110640.0,0.50114563]
[1756212035028,0.00014281,110650.0,110640.0,0.50414563]
[1756212035680,0.00014281,110650.0,110640.0,0.28318846]
[1756212035894,0.00014281,110650.0,110640.0,0.50438846]
[1756212037263,0.00014281,110650.0,110640.0,0.50378846]
[1756212037670,0.00014281,110650.0,110640.0,0.50362846]
[1756212038737,0.00014281,110650.0,110640.0,1.08974583]
[1756212038944,0.00014281,110650.0,110640.0,1.11691283]
[1756212039167,0.00014281,110650.0,110640.0,1.11627283]
[1756212039370,0.00014281,110650.0,110640.0,0.31035546]
[1756212039570,0.00014281,110650.0,110640.0,1.11627283]
[1756212039987,0.00014281,110650.0,110640.0,0.89647283]